bitfinex-derivatives/quotes_ETHF0:USTF0_20260117
["timestamp","ask_amount","ask_price","bid_price","bid_amount"]
[1768686295587,0.96730449,3313.9,3312.7,0.18247538]
[1768686295788,0.96730449,3313.8,3312.7,0.18247538]
[1768686295987,0.00340618,3314.0,3312.7,0.18247538]
[1768686296187,0.96730447,3313.9,3312.7,0.18247538]
[1768686296387,0.96730447,3313.8,3312.7,0.18247538]
[1768686296587,0.00340618,3314.0,3312.7,0.18247538]
[1768686296797,0.96730442,3313.9,3312.7,0.18247538]
[1768686296989,0.96730442,3313.8,3312.7,0.18247538]
[1768686297289,0.00340618,3314.0,3312.7,0.18247538]
[1768686297492,0.96730481,3313.9,3312.7,0.18247538]
[1768686297689,0.96730481,3313.8,3312.7,0.18247538]
[1768686297991,0.00340618,3314.0,3312.7,0.18247538]
[1768686298195,0.96701482,3313.9,3312.7,0.18247538]
[1768686298490,0.96701482,3313.8,3312.7,0.18247538]
[1768686298685,0.00340618,3314.0,3312.7,0.18247538]
[1768686298885,0.96701807,3313.9,3312.7,0.18247538]
[1768686299093,0.96701807,3313.8,3312.7,0.18247538]
[1768686299290,0.00340618,3314.0,3312.7,0.18247538]
[1768686299491,0.96706267,3313.9,3312.7,0.18247538]
[1768686299698,0.96706267,3313.8,3312.7,0.18247538]
[1768686299991,0.00340618,3314.0,3312.7,0.18247538]
[1768686300193,0.96706269,3313.9,3312.7,0.18247538]
[1768686300492,0.96706269,3313.8,3312.7,0.18247538]
[1768686300694,0.00340618,3314.0,3312.7,0.18247538]
[1768686300884,0.96706228,3313.9,3312.7,0.18247538]
[1768686301084,0.96706228,3313.8,3312.7,0.18247538]
[1768686301289,0.00340618,3314.0,3312.7,0.18247538]
[1768686301489,0.96706491,3313.9,3312.7,0.18247538]
[1768686301782,0.96706491,3313.8,3312.7,0.18247538]
[1768686301983,0.00340618,3314.0,3312.7,0.18247538]
[1768686302181,0.96707579,3313.9,3312.7,0.18247538]
[1768686302396,0.96707579,3313.8,3312.7,0.18247538]
[1768686302595,0.00340618,3314.0,3312.7,0.18247538]
[1768686302798,0.96708009,3313.9,3312.7,0.18247538]
[1768686302999,0.96708009,3313.8,3312.7,0.18247538]
[1768686303297,0.00340618,3314.0,3312.7,0.18247538]
[1768686303497,0.96708531,3313.9,3312.7,0.18247538]
[1768686303694,0.96708531,3313.8,3312.7,0.18247538]
[1768686303996,0.00340618,3314.0,3312.7,0.18247538]
[1768686304293,0.96708532,3313.9,3312.7,0.18247538]
[1768686304484,0.96708532,3313.8,3312.7,0.18247538]
[1768686304687,0.00340618,3314.0,3312.7,0.18247538]
[1768686304891,0.96709308,3313.9,3312.7,0.18247538]
[1768686305187,0.96709308,3313.8,3312.7,0.18247538]
[1768686305388,0.00340618,3314.0,3312.7,0.18247538]
[1768686305682,0.96709899,3313.9,3312.7,0.18247538]
[1768686305881,0.96709899,3313.8,3312.7,0.18247538]
[1768686306081,0.00340618,3314.0,3312.7,0.18247538]
[1768686306296,0.96709899,3313.9,3312.7,0.18247538]
[1768686306496,0.96709899,3313.8,3312.7,0.18247538]
[1768686306696,0.00340618,3314.0,3312.7,0.18247538]
[1768686306887,0.96710491,3313.9,3312.7,0.18247538]
[1768686307087,0.96710491,3313.8,3312.7,0.18247538]
[1768686307287,0.00340618,3314.0,3312.7,0.18247538]
[1768686307488,0.96711207,3313.9,3312.7,0.18247538]
[1768686307697,0.96711207,3313.8,3312.7,0.18247538]
[1768686307993,0.00340618,3314.0,3312.7,0.18247538]
[1768686308199,0.9671136,3313.9,3312.7,0.18247538]
[1768686308386,0.00340618,3314.0,3312.7,0.18247538]
[1768686308387,0.9671136,3313.8,3312.7,0.18247538]
[1768686308583,0.00340618,3314.0,3312.7,0.18247538]
[1768686308795,0.96712277,3313.9,3312.7,0.18247538]
[1768686308989,0.96712277,3313.8,3312.7,0.18247538]
[1768686309196,0.00340618,3314.0,3312.7,0.18247538]
[1768686309392,0.96712275,3313.9,3312.7,0.18247538]
[1768686309584,0.96712275,3313.8,3312.7,0.18247538]
[1768686309785,0.00340618,3314.0,3312.7,0.18247538]
[1768686309988,0.96713028,3313.9,3312.7,0.18247538]
[1768686310186,0.96713028,3313.8,3312.7,0.18247538]
[1768686310387,0.00340618,3314.0,3312.7,0.18247538]
[1768686310590,0.9671428,3313.9,3312.7,0.18247538]
[1768686310799,0.9671428,3313.8,3312.7,0.18247538]
[1768686310999,0.00340618,3314.0,3312.7,0.18247538]
[1768686311191,0.96714252,3313.9,3312.7,0.18247538]
[1768686311392,0.96714252,3313.8,3312.7,0.18247538]
[1768686311602,0.00340618,3314.0,3312.7,0.18247538]
[1768686311800,0.96714564,3313.9,3312.7,0.18247538]
[1768686311999,0.96714564,3313.8,3312.7,0.18247538]
[1768686312203,0.00340618,3314.0,3312.7,0.18247538]
[1768686312404,0.96714563,3313.9,3312.7,0.18247538]
[1768686312701,0.96714563,3313.8,3312.7,0.18247538]
[1768686313001,0.00340618,3314.0,3312.7,0.18247538]
[1768686313202,0.96715038,3313.9,3312.7,0.18247538]
[1768686313404,0.00340618,3314.0,3312.7,0.18247538]
[1768686313405,0.96715038,3313.8,3312.7,0.18247538]
[1768686313702,0.00340618,3314.0,3312.7,0.18247538]
[1768686313904,0.96712773,3313.9,3312.7,0.18247538]
[1768686314096,0.96712773,3313.8,3312.7,0.18247538]
[1768686314296,0.00340618,3314.0,3312.7,0.18247538]
[1768686314595,0.967126,3313.9,3312.7,0.18247538]
[1768686314794,0.967126,3313.8,3312.7,0.18247538]
[1768686315002,0.00340618,3314.0,3312.7,0.18247538]
[1768686315202,0.9671255,3313.9,3312.7,0.18247538]
[1768686315500,0.9671255,3313.8,3312.7,0.18247538]
[1768686315701,0.00340618,3314.0,3312.7,0.18247538]
[1768686315902,0.96712088,3313.9,3312.7,0.18247538]
[1768686316105,0.96712088,3313.8,3312.7,0.18247538]
[1768686316301,0.00340618,3314.0,3312.7,0.18247538]
[1768686316502,0.96711767,3313.9,3312.7,0.18247538]
[1768686316702,0.96711767,3313.8,3312.7,0.18247538]
[1768686316902,0.00340618,3314.0,3312.7,0.18247538]
[1768686317103,0.96711626,3313.9,3312.7,0.18247538]
[1768686317305,0.96711626,3313.8,3312.7,0.18247538]
[1768686317498,0.00340618,3314.0,3312.7,0.18247538]
[1768686317698,0.96711406,3313.9,3312.7,0.18247538]
[1768686317906,0.96711406,3313.8,3312.7,0.18247538]
[1768686318106,0.00340618,3314.0,3312.7,0.18247538]
[1768686318305,0.96711248,3313.9,3312.7,0.18247538]
[1768686318506,0.96711248,3313.8,3312.7,0.18247538]
[1768686318708,0.00340618,3314.0,3312.7,0.18247538]
[1768686319007,0.96711177,3313.9,3312.7,0.18247538]
[1768686319209,0.96711177,3313.8,3312.7,0.18247538]
[1768686319407,0.00340618,3314.0,3312.7,0.18247538]
[1768686319608,0.96711127,3313.9,3312.7,0.18247538]
[1768686319808,0.96711127,3313.8,3312.7,0.18247538]
[1768686319998,0.00340618,3314.0,3312.7,0.18247538]
[1768686320199,0.96711128,3313.9,3312.7,0.18247538]
[1768686320408,0.96711128,3313.8,3312.7,0.18247538]
[1768686320608,0.00340618,3314.0,3312.7,0.18247538]
[1768686320810,0.96711036,3313.9,3312.7,0.18247538]
[1768686321013,0.96711036,3313.8,3312.7,0.18247538]
[1768686321312,0.00340618,3314.0,3312.7,1.15493824]
[1768686321609,0.96710988,3313.9,3312.7,1.15493824]
[1768686321809,0.96710988,3313.8,3312.7,1.15493824]
[1768686322108,0.00340618,3314.0,3312.7,1.15493824]
[1768686322310,0.96710989,3313.9,3312.7,1.15493824]
[1768686322510,0.96710989,3313.8,3312.7,1.15493824]
[1768686322700,0.00340618,3314.0,3312.7,1.15493824]
[1768686323008,0.96710959,3313.9,3312.7,1.15493824]
[1768686323207,0.96710959,3313.8,3312.7,1.15493824]
[1768686323408,0.00340618,3314.0,3312.7,1.15493824]
[1768686323607,0.9671098,3313.9,3312.7,1.15493824]
[1768686323798,0.9671098,3313.8,3312.7,1.15493824]
[1768686323999,0.00340618,3314.0,3312.7,1.15493824]
[1768686324211,0.96710977,3313.9,3312.7,1.15493824]
[1768686324399,0.96710977,3313.8,3312.7,1.15493824]
[1768686324603,0.00340618,3314.0,3312.7,1.15493824]
[1768686324908,0.96710989,3313.9,3312.7,1.15493824]
[1768686325110,0.96710989,3313.8,3312.7,1.15493824]
[1768686325308,0.00340618,3314.0,3312.7,1.15493824]
[1768686325508,0.96711057,3313.9,3312.7,1.15493824]
[1768686325809,0.96711057,3313.8,3312.7,1.15493824]
[1768686326111,0.00340618,3314.0,3312.7,1.15493824]
[1768686326303,0.96711055,3313.9,3312.7,1.15493824]
[1768686326506,0.96711055,3313.8,3312.7,1.15493824]
[1768686326804,0.00340618,3314.0,3312.7,1.15493824]
[1768686327007,0.96711027,3313.9,3312.7,1.15493824]
[1768686327305,0.96711027,3313.8,3312.7,1.15493824]
[1768686327504,0.00340618,3314.0,3312.7,1.15493824]
[1768686327804,0.9670869,3313.9,3312.7,1.15493824]
[1768686328003,0.9670869,3313.8,3312.7,1.15493824]
[1768686328204,0.00340618,3314.0,3312.7,1.15493824]
[1768686328403,0.96708591,3313.9,3312.7,1.15493824]
[1768686328609,0.96708591,3313.8,3312.7,1.15493824]
[1768686328810,0.00340618,3314.0,3312.7,1.15493824]
[1768686329004,0.96708566,3313.9,3312.7,1.15493824]
[1768686329201,0.96708566,3313.8,3312.7,1.15493824]
[1768686329405,0.00340618,3314.0,3312.7,1.15493824]
[1768686329607,0.96708632,3313.9,3312.7,1.15493824]
[1768686329806,0.96708632,3313.8,3312.7,1.15493824]
[1768686330014,0.00340618,3314.0,3312.7,1.15493824]
[1768686330202,0.96708632,3313.9,3312.7,1.15493824]
[1768686330405,0.96708632,3313.8,3312.7,1.15493824]
[1768686330611,0.00340618,3314.0,3312.7,1.15493824]
[1768686330912,0.96708743,3313.9,3312.7,1.15493824]
[1768686331112,0.96708743,3313.8,3312.7,1.15493824]
[1768686331313,0.00340618,3314.0,3312.7,1.15493824]
[1768686331516,0.96708851,3313.9,3312.7,1.15493824]
[1768686331714,0.96708851,3313.8,3312.7,1.15493824]
[1768686332013,0.00340618,3314.0,3312.7,1.15493824]
[1768686332215,0.96708872,3313.9,3312.7,1.15493824]
[1768686332409,0.96708872,3313.8,3312.7,1.15493824]
[1768686332709,0.00340618,3314.0,3312.7,1.15493824]
[1768686332910,0.96709006,3313.9,3312.7,1.15493824]
[1768686333116,0.96709006,3313.8,3312.7,1.15493824]
[1768686333314,0.00340618,3314.0,3312.7,1.15493824]
[1768686333516,0.96709177,3313.9,3312.7,1.15493824]
[1768686333718,0.96709177,3313.8,3312.7,1.15493824]
[1768686333918,0.00340618,3314.0,3312.7,1.15493824]
[1768686334107,0.96709185,3313.9,3312.7,1.15493824]
[1768686334308,0.96709185,3313.8,3312.7,1.15493824]
[1768686334613,0.00340618,3314.0,3312.7,1.15493824]
[1768686334819,0.96709244,3313.9,3312.7,1.15493824]
[1768686335013,0.96709244,3313.8,3312.7,1.15493824]
[1768686335214,0.00340618,3314.0,3312.7,1.15493824]
[1768686335414,0.9670924,3313.9,3312.7,1.15493824]
[1768686335614,0.9670924,3313.8,3312.7,1.15493824]
[1768686335815,0.00340618,3314.0,3312.7,1.15493824]
[1768686336014,0.96709534,3313.9,3312.7,1.15493824]
[1768686336216,0.96709534,3313.8,3312.7,1.15493824]
[1768686336516,0.00340618,3314.0,3312.7,1.15493824]
[1768686336708,0.96709872,3313.9,3312.7,1.15493824]
[1768686336909,0.96709872,3313.8,3312.7,0.97246286]
[1768686337105,0.96709872,3313.8,3312.4,0.97246286]
[1768686339223,0.96709872,3313.8,3312.3,0.34109759]
[1768686339521,0.96709872,3313.8,3312.5,0.97246286]
[1768686342826,0.96709872,3313.8,3312.7,0.97246286]
[1768686352335,0.96709872,3313.8,3312.9,0.97246286]
[1768686352636,0.00340618,3314.0,3312.9,0.97246286]
[1768686352827,0.96692603,3313.9,3312.9,0.97246286]
[1768686353026,0.96692603,3313.8,3312.9,0.97246286]
[1768686353230,0.00340618,3314.0,3312.9,0.97246286]
[1768686353524,0.96692498,3313.9,3312.9,0.97246286]
[1768686353728,0.96692498,3313.8,3312.9,0.97246286]
[1768686353925,0.00340618,3314.0,3312.9,0.97246286]
[1768686354235,0.96376136,3313.9,3312.9,0.97246286]
[1768686354531,0.96376136,3313.8,3312.9,0.97246286]
[1768686354733,0.00340618,3314.0,3312.9,0.97246286]
[1768686354922,0.96375839,3313.9,3312.9,0.97246286]
[1768686355125,0.96375839,3313.8,3312.9,0.97246286]
[1768686355437,0.00340618,3314.0,3313.1,0.97246286]
[1768686355632,0.96375898,3313.9,3313.1,0.97246286]
[1768686355840,0.00340618,3314.0,3313.1,0.97246286]
[1768686356139,0.9637689,3313.9,3313.1,0.97246286]
[1768686356333,0.00340618,3314.0,3312.9,0.97246286]
[1768686356521,0.96375465,3313.9,3312.9,0.97246286]
[1768686356722,0.00340618,3314.0,3312.9,0.97246286]
[1768686357023,0.96375437,3313.9,3312.9,0.97246286]
[1768686357227,0.00340618,3314.0,3312.9,0.97246286]
[1768686357424,0.96374097,3313.9,3312.9,0.97246286]
[1768686357634,0.00340618,3314.0,3312.9,0.97246286]
[1768686357829,0.96314772,3313.9,3312.9,0.97246286]
[1768686358037,0.00340618,3314.0,3312.9,0.97246286]
[1768686358230,0.9631477,3313.9,3312.9,0.97246286]
[1768686358422,0.00340618,3314.0,3312.9,0.97246286]
[1768686358620,0.96313538,3313.9,3312.9,0.97246286]
[1768686358837,0.00340618,3314.0,3312.9,0.97246286]
[1768686359048,0.96313538,3313.9,3312.9,0.97246286]
[1768686359333,0.00340618,3314.0,3312.9,0.97246286]
[1768686359535,0.96312387,3313.9,3312.9,0.97246286]
[1768686359734,0.00340618,3314.0,3312.9,0.97246286]
[1768686360035,0.9631239,3313.9,3312.9,0.97246286]
[1768686360235,0.00340618,3314.0,3312.9,0.97246286]
[1768686360435,0.96312387,3313.9,3312.9,0.97246286]
[1768686360624,0.00340618,3314.0,3313.1,0.97246286]
[1768686363543,0.00340618,3314.0,3313.3,0.97246286]
[1768686379242,0.00340618,3314.0,3313.4,0.97246286]
[1768686383345,0.00340618,3314.0,3313.2,0.19074854]
[1768686411270,0.00340618,3314.0,3313.0,1.689]
[1768686412974,0.00340618,3314.0,3313.1,1.689]
[1768686424686,0.00340618,3314.0,3312.9,0.35791973]
[1768686424888,0.00340618,3314.0,3313.0,1.689]
[1768686430293,0.00340618,3314.0,3312.9,0.35791973]
[1768686430589,0.00340618,3314.0,3313.0,1.689]
[1768686445311,0.00340618,3314.0,3313.1,0.97229939]
[1768686467822,0.00340618,3314.0,3313.1,1.17514481]
[1768686475026,0.00340618,3314.0,3313.1,0.20284542]
[1768686522667,0.33952335,3314.9,3313.1,0.20284542]
[1768686522867,1.22017108,3314.8,3313.1,0.20284542]
[1768686523067,0.95925032,3314.7,3313.1,0.20284542]
[1768686523263,0.95925032,3314.6,3313.1,0.20284542]
[1768686523567,0.95925032,3314.5,3313.1,0.20284542]
[1768686523767,0.95925032,3314.4,3313.1,0.20284542]
[1768686523957,0.95925032,3314.3,3313.1,0.20284542]
[1768686524158,0.95925032,3314.2,3313.1,0.20284542]
[1768686524362,0.95925032,3314.1,3313.1,0.20284542]
[1768686524564,0.0026174,3314.6,3313.1,0.20284542]
[1768686524763,0.95922211,3314.5,3313.1,0.20284542]
[1768686524960,0.95922211,3314.4,3313.1,0.20284542]
[1768686525172,0.95922211,3314.3,3313.1,0.20284542]
[1768686525366,0.0026174,3314.6,3313.1,0.20284542]
[1768686525569,0.95926401,3314.5,3313.1,0.20284542]
[1768686525865,0.95926401,3314.4,3313.1,0.20284542]
[1768686526066,0.95926401,3314.3,3313.1,0.20284542]
[1768686526265,0.0026174,3314.6,3313.1,0.20284542]
[1768686526571,0.95911002,3314.5,3313.5,0.19897023]
[1768686526870,0.0026174,3314.6,3313.5,0.19897023]
[1768686527072,0.9591411,3314.5,3313.5,0.19897023]
[1768686527372,0.0026174,3314.6,3313.5,0.19897023]
[1768686540374,0.54921438,3315.3,3313.5,0.19897023]
[1768686540579,0.95574875,3315.2,3313.5,0.19897023]
[1768686540776,0.95574875,3315.1,3313.5,0.19897023]
[1768686540977,0.54921438,3315.3,3313.5,0.19897023]
[1768686541180,0.95582789,3315.2,3313.5,0.19897023]
[1768686541368,0.95582789,3315.1,3313.5,0.19897023]
[1768686541569,0.00369895,3315.2,3313.8,0.19689166]
[1768686562204,0.95706368,3315.1,3313.8,0.19689166]
[1768686562409,0.00369895,3315.2,3313.8,0.19689166]
[1768686562608,0.95706398,3315.1,3313.8,0.19689166]
[1768686562795,0.00369895,3315.2,3313.8,0.19689166]
[1768686569215,0.95837476,3315.1,3313.8,0.19689166]
[1768686569413,0.00369895,3315.2,3314.1,1.1605816]
[1768686569610,0.95837472,3315.1,3314.1,1.1605816]
[1768686569915,0.00369895,3315.2,3314.1,1.1605816]
[1768686570112,0.95837476,3315.1,3314.1,1.1605816]
[1768686570413,0.00369895,3315.2,3314.1,1.1605816]
[1768686570611,0.95838239,3315.1,3314.1,1.1605816]
[1768686570814,0.00369895,3315.2,3314.1,1.1605816]
[1768686571012,0.95838242,3315.1,3314.1,1.1605816]
[1768686571214,0.00369895,3315.2,3314.1,1.1605816]
[1768686571409,0.95876019,3315.1,3314.1,1.1605816]
[1768686571613,0.00369895,3315.2,3314.1,1.1605816]
[1768686571813,0.95876022,3315.1,3314.1,1.1605816]
[1768686572111,0.00369895,3315.2,3314.1,1.1605816]
[1768686572302,0.95880419,3315.1,3314.1,1.1605816]
[1768686572504,0.00369895,3315.2,3314.1,1.1605816]
[1768686572711,0.95880423,3315.1,3314.1,1.1605816]
[1768686572909,0.00369895,3315.2,3314.1,1.1605816]
[1768686573102,0.95880419,3315.1,3314.1,1.1605816]
[1768686573316,0.00369895,3315.2,3314.1,1.1605816]
[1768686573506,0.95880423,3315.1,3314.1,1.1605816]
[1768686573714,0.00369895,3315.2,3314.1,1.1605816]
[1768686573912,0.95880412,3315.1,3314.1,1.1605816]
[1768686574114,0.00369895,3315.2,3314.1,1.1605816]
[1768686574316,0.95880371,3315.1,3314.1,1.1605816]
[1768686574619,0.00369895,3315.2,3314.1,1.1605816]
[1768686574819,0.95880377,3315.1,3314.1,1.1605816]
[1768686575019,0.00369895,3315.2,3314.1,1.1605816]
[1768686575220,0.95880559,3315.1,3314.1,1.1605816]
[1768686575422,0.00369895,3315.2,3314.1,1.1605816]
[1768686575612,0.95880558,3315.1,3314.1,1.1605816]
[1768686575814,0.00369895,3315.2,3314.1,1.1605816]
[1768686576114,0.95880568,3315.1,3314.1,1.1605816]
[1768686576315,0.00369895,3315.2,3314.1,1.1605816]
[1768686576516,0.95880469,3315.1,3314.1,1.1605816]
[1768686576715,0.00369895,3315.2,3314.1,1.1605816]
[1768686576915,0.95880473,3315.1,3314.1,1.1605816]
[1768686577213,0.00369895,3315.2,3314.1,1.1605816]
[1768686577422,0.95874561,3315.1,3314.1,1.1605816]
[1768686577624,0.00369895,3315.2,3314.1,1.1605816]
[1768686577918,0.95874564,3315.1,3314.1,1.1605816]
[1768686578124,0.00369895,3315.2,3314.1,1.1605816]
[1768686578423,0.95874729,3315.1,3314.1,1.1605816]
[1768686578623,0.00369895,3315.2,3314.1,1.1605816]
[1768686578920,0.95874733,3315.1,3314.1,1.1605816]
[1768686579117,0.00369895,3315.2,3314.1,1.1605816]
[1768686579314,0.95874746,3315.1,3314.1,1.1605816]
[1768686579519,0.00369895,3315.2,3314.1,1.1605816]
[1768686579818,0.95874736,3315.1,3314.1,1.1605816]
[1768686580016,0.00369895,3315.2,3314.1,1.1605816]
[1768686580216,0.95874746,3315.1,3314.1,1.1605816]
[1768686580521,0.00369895,3315.2,3314.1,1.1605816]
[1768686580722,0.95874739,3315.1,3314.1,1.1605816]
[1768686580921,0.00369895,3315.2,3314.1,1.1605816]
[1768686581112,0.95874742,3315.1,3314.1,1.1605816]
[1768686581308,0.00369895,3315.2,3314.1,1.1605816]
[1768686581511,0.95874798,3315.1,3314.1,1.1605816]
[1768686581711,0.00369895,3315.2,3314.1,1.1605816]
[1768686581927,0.95874809,3315.1,3314.1,1.1605816]
[1768686582128,0.00369895,3315.2,3314.1,1.1605816]
[1768686582332,0.95874801,3315.1,3314.1,1.1605816]
[1768686582626,0.00369895,3315.2,3314.1,1.1605816]
[1768686582829,0.95874803,3315.1,3314.1,1.1605816]
[1768686583124,0.00369895,3315.2,3314.1,1.1605816]
[1768686583327,0.95874812,3315.1,3314.1,1.1605816]
[1768686583510,0.00369895,3315.2,3314.1,1.1605816]
[1768686583711,0.95874815,3315.1,3314.1,1.1605816]
[1768686583912,0.00369895,3315.2,3314.1,1.1605816]
[1768686584119,0.95874813,3315.1,3314.1,1.1605816]
[1768686584317,0.00369895,3315.2,3314.1,1.1605816]
[1768686584517,0.95874845,3315.1,3314.1,1.1605816]
[1768686584720,0.00369895,3315.2,3314.1,1.1605816]
[1768686585020,0.95874834,3315.1,3314.1,1.1605816]
[1768686585319,0.00369895,3315.2,3314.1,1.1605816]
[1768686585520,0.95874967,3315.1,3314.1,1.1605816]
[1768686585731,0.00369895,3315.2,3314.1,1.1605816]
[1768686585925,0.95874959,3315.1,3314.1,1.1605816]
[1768686586223,0.00369895,3315.2,3314.1,1.1605816]
[1768686586423,0.9587522,3315.1,3314.1,1.1605816]
[1768686586624,0.00369895,3315.2,3314.1,1.1605816]
[1768686586822,0.95875056,3315.1,3314.1,1.1605816]
[1768686587019,0.00369895,3315.2,3314.1,1.1605816]
[1768686587222,0.9587496,3315.1,3314.1,1.1605816]
[1768686587516,0.00369895,3315.2,3314.1,1.1605816]
[1768686587721,0.95875118,3315.1,3314.1,1.1605816]
[1768686587925,0.00369895,3315.2,3314.1,1.1605816]
[1768686588122,0.95875124,3315.1,3314.1,1.1605816]
[1768686588330,0.00369895,3315.2,3314.1,1.1605816]
[1768686588528,0.95875072,3315.1,3314.1,1.1605816]
[1768686588831,0.00369895,3315.2,3314.1,1.1605816]
[1768686589134,0.95875084,3315.1,3314.1,1.1605816]
[1768686589431,0.00369895,3315.2,3314.1,1.1605816]
[1768686589631,0.95874868,3315.1,3314.1,1.1605816]
[1768686589930,0.00369895,3315.2,3314.1,1.1605816]
[1768686590133,0.95874873,3315.1,3314.1,1.1605816]
[1768686590429,0.00369895,3315.2,3314.1,1.1605816]
[1768686590631,0.95874813,3315.1,3314.1,1.1605816]
[1768686590827,0.00369895,3315.2,3314.1,1.1605816]
[1768686591026,0.95874816,3315.1,3314.1,1.1605816]
[1768686591229,0.00369895,3315.2,3314.1,1.1605816]
[1768686591528,0.95874796,3315.1,3314.1,1.1605816]
[1768686591728,0.00369895,3315.2,3314.1,1.1605816]
[1768686591921,0.95874798,3315.1,3314.1,1.1605816]
[1768686592118,0.00369895,3315.2,3314.1,1.1605816]
[1768686592324,0.95874778,3315.1,3314.1,1.1605816]
[1768686592533,0.00369895,3315.2,3314.1,1.1605816]
[1768686592736,0.95874696,3315.1,3314.1,1.1605816]
[1768686592924,0.95874696,3315.0,3314.1,1.1605816]
[1768686593128,0.00369895,3315.2,3314.1,1.1605816]
[1768686593328,0.95874567,3315.1,3314.1,1.1605816]
[1768686593634,0.95874567,3315.0,3314.1,1.1605816]
[1768686593831,0.00369895,3315.2,3314.1,1.1605816]
[1768686594037,0.95874567,3315.1,3314.1,1.1605816]
[1768686594236,0.95874567,3315.0,3314.1,1.1605816]
[1768686594437,0.00369895,3315.2,3314.1,1.1605816]
[1768686594732,0.95874462,3315.1,3314.1,1.1605816]
[1768686594934,0.95874462,3315.0,3314.1,1.1605816]
[1768686595137,0.00369895,3315.2,3314.1,1.1605816]
[1768686595342,0.95874614,3315.1,3314.1,1.1605816]
[1768686595542,0.95874614,3315.0,3314.1,1.1605816]
[1768686595731,0.00369895,3315.2,3314.1,1.1605816]
[1768686595933,0.95874611,3315.1,3314.1,1.1605816]
[1768686596132,0.95874611,3315.0,3314.1,1.1605816]
[1768686596341,0.00369895,3315.2,3314.1,1.1605816]
[1768686596533,0.9587437,3315.1,3314.1,1.1605816]
[1768686596737,0.9587437,3315.0,3314.1,1.1605816]
[1768686596935,0.00369895,3315.2,3314.1,1.1605816]
[1768686597140,0.95503707,3315.1,3314.1,1.1605816]
[1768686597440,0.95503707,3315.0,3314.1,1.1605816]
[1768686597640,0.00369895,3315.2,3314.1,1.1605816]
[1768686597839,0.95443096,3315.1,3314.1,1.1605816]
[1768686598040,0.95443096,3315.0,3314.1,1.1605816]
[1768686598237,0.00369895,3315.2,3314.1,1.1605816]
[1768686598435,0.95442882,3315.1,3314.1,1.1605816]
[1768686598635,0.95442882,3315.0,3314.1,1.1605816]
[1768686598836,0.00369895,3315.2,3314.1,1.1605816]
[1768686599036,0.95442886,3315.1,3314.1,1.1605816]
[1768686599240,0.00369895,3315.2,3314.1,1.1605816]
[1768686599241,0.95442886,3315.0,3314.1,1.1605816]
[1768686599443,0.00369895,3315.2,3314.1,1.1605816]
[1768686599643,0.9544283,3315.1,3314.1,1.1605816]
[1768686599944,0.9544283,3315.0,3314.1,1.1605816]
[1768686600240,0.00369895,3315.2,3314.1,1.1605816]
[1768686600446,0.95442819,3315.1,3314.1,1.1605816]
[1768686600649,0.95442819,3315.0,3314.1,1.1605816]
[1768686600848,0.00369895,3315.2,3314.1,1.1605816]
[1768686601051,0.95442949,3315.1,3314.1,1.1605816]
[1768686601347,0.00369895,3315.2,3314.1,1.1605816]
[1768686601348,0.95442949,3315.0,3314.1,1.1605816]
[1768686601646,0.00369895,3315.2,3314.1,1.1605816]
[1768686601849,0.95442893,3315.1,3314.1,1.1605816]
[1768686602047,0.95442893,3315.0,3314.1,1.1605816]
[1768686602243,0.00369895,3315.2,3314.1,1.1605816]
[1768686602438,0.95442914,3315.1,3314.1,1.1605816]
[1768686602639,0.95442914,3315.0,3314.1,1.1605816]
[1768686602850,0.00369895,3315.2,3314.1,1.1605816]
[1768686603049,0.95442922,3315.1,3314.1,1.1605816]
[1768686603350,0.00369895,3315.2,3314.1,1.1605816]
[1768686603553,0.9544291,3315.1,3314.1,1.1605816]
[1768686603747,0.00369895,3315.2,3314.1,1.1605816]
[1768686603948,0.95442917,3315.1,3314.1,1.1605816]
[1768686604252,0.9753832,3315.2,3313.7,0.97168425]
[1768686604553,0.95442946,3315.1,3313.7,1.16907304]
[1768686604746,0.9753832,3315.2,3313.7,1.16907304]
[1768686604940,0.95442902,3315.1,3313.7,1.16907304]
[1768686605144,0.9753832,3315.2,3313.9,0.97168425]
[1768686605343,0.95442905,3315.1,3313.9,0.97168425]
[1768686605539,0.9753832,3315.2,3313.9,0.97168425]
[1768686605742,0.95442763,3315.1,3313.9,0.97168425]
[1768686605953,0.9753832,3315.2,3313.9,0.97168425]
[1768686606250,0.95442761,3315.1,3313.9,0.97168425]
[1768686606451,0.9753832,3315.2,3313.9,0.97168425]
[1768686606652,0.95442783,3315.1,3313.9,0.97168425]
[1768686606853,0.9753832,3315.2,3313.9,0.97168425]
[1768686607054,0.95442776,3315.1,3313.9,0.97168425]
[1768686607257,0.9753832,3315.2,3313.9,0.97168425]
[1768686607455,0.95442791,3315.1,3313.9,0.97168425]
[1768686607657,0.9753832,3315.2,3313.9,0.97168425]
[1768686607849,0.95442618,3315.1,3313.9,0.97168425]
[1768686608047,0.9753832,3315.2,3313.9,0.97168425]
[1768686608246,0.9544264,3315.1,3313.9,0.97168425]
[1768686608448,0.9753832,3315.2,3313.9,0.97168425]
[1768686608647,0.95442662,3315.1,3313.9,0.97168425]
[1768686608857,0.9753832,3315.2,3313.9,0.97168425]
[1768686609060,0.95442655,3315.1,3313.9,0.97168425]
[1768686609252,0.9753832,3315.2,3313.9,0.97168425]
[1768686609451,0.95442705,3315.1,3314.1,0.97168425]
[1768686609651,0.00369895,3315.2,3314.1,0.97168425]
[1768686609850,0.00369895,3315.2,3314.2,0.19738879]
[1768686610949,0.00369895,3315.2,3314.3,0.97168425]
[1768686611149,0.00369895,3315.2,3314.3,0.97471648]
[1768686616161,0.00369895,3315.2,3314.3,0.00303223]
[1768686660613,0.97171403,3315.1,3313.4,0.18958477]
[1768686660808,1.1414187,3315.0,3313.4,0.18958477]
[1768686661009,0.95354858,3314.9,3313.4,0.18958477]
[1768686661313,0.18787012,3315.0,3313.4,0.18958477]
[1768686661811,0.18787012,3315.0,3313.4,0.19349222]
[1768686687330,0.95249855,3314.9,3313.4,0.19349222]
[1768686687625,0.18787012,3315.0,3313.4,0.19349222]
[1768686687816,0.95249843,3314.9,3313.4,0.19349222]
[1768686688011,0.18787012,3315.0,3313.4,0.19349222]
[1768686688212,0.95881357,3314.9,3313.4,0.19349222]
[1768686688416,0.18787012,3315.0,3313.4,0.19349222]
[1768686688619,0.95909792,3314.9,3313.4,0.19349222]
[1768686688820,0.18787012,3315.0,3313.4,0.19349222]
[1768686689022,0.95909803,3314.9,3313.4,0.19349222]
[1768686689220,0.18787012,3315.0,3313.4,0.19349222]
[1768686689420,0.95911004,3314.9,3313.4,0.19349222]
[1768686689627,0.95911004,3314.8,3313.4,0.19349222]
[1768686689831,0.18787012,3315.0,3313.4,0.19349222]
[1768686690125,0.9597943,3314.9,3313.4,0.19349222]
[1768686690313,0.9597943,3314.8,3313.4,0.19349222]
[1768686690517,0.18787012,3315.0,3313.4,0.19349222]
[1768686690717,0.95979627,3314.9,3313.4,0.19349222]
[1768686690913,0.95979627,3314.8,3313.4,0.19349222]
[1768686691126,0.18787012,3315.0,3313.4,0.19349222]
[1768686691329,0.95979717,3314.9,3313.4,0.19349222]
[1768686691529,0.95979717,3314.8,3313.4,0.19349222]
[1768686691830,0.18787012,3315.0,3313.4,0.19349222]
[1768686692020,0.19088942,3314.8,3313.4,0.19349222]